Cogmind - Beta 10.2 *** ADVENTURER MODE // 2022.02.07 @ 22:18:52 Player: User Result: Self-destructed Performance ------------- Evolutions (1) 500 Regions Visited (6) 1200 Robots Destroyed (14) 70 Value Destroyed (278) 278 Prototype IDs (0) 0 Alien Tech Used (0) 0 Bonus (200) 200 TOTAL SCORE: 2248 Bonus ------- Pacifist 200 Cogmind --------- Core Integrity 314/400 Matter 252/300 Energy 250/250 System Corruption 0% Temperature Cool (9) Movement Walking (180) Ox2 Location -8/Mines Parts ------- > --- POWER (1) -------- Ion Engine > --- PROPULSION (2) --- Aluminum Leg > --- UTILITY (4) ------ Large Storage Unit Signal Interpreter Targeting Computer > --- WEAPON (2) ------- Assault Rifle Mini Grenade Launcher > --- INVENTORY (10) --- Medium Matter Pod (39) Visual Processing Unit Weapon Shielding Hardened Light Armor Plating Medium Laser EM Pulse Cannon Shotgun Mini Grenade Launcher Mining Laser Peak State ------------ > --- POWER ------------ Ion Engine > --- PROPULSION ------- Aluminum Leg Aluminum Leg > --- UTILITY ---------- Large Storage Unit Signal Interpreter Targeting Computer > --- WEAPON ----------- Assault Rifle Mini Grenade Launcher > --- INVENTORY -------- Medium Matter Pod Visual Processing Unit Weapon Shielding Hardened Light Armor Plating Medium Laser EM Pulse Cannon Shotgun Mini Grenade Launcher Mining Laser [Rating: 10] Favorites ----------- Power Ion Engine Engine Ion Engine Propulsion Aluminum Leg Leg Aluminum Leg Utility Targeting Computer Storage Large Storage Unit Processor Targeting Computer Weapon Assault Rifle Energy Gun Medium Laser Ballistic Gun Assault Rifle Launcher Mini Grenade Launcher Build | -11 -10 -10 -9 -9 -9 -8 ------- Run | Scr Mat Min Mat Min Exi Min Slots Evolved 2 | . . . 2 . . . Power . | . . . . . . . Propulsion . | . . . . . . . Utility 2 | . . . 2 . . . Weapon . | . . . . . . . Parts Attached 5 | . . . 2 1 . 2 Power . | . . . . . . . Engine . | . . . . . . . Core . | . . . . . . . Reactor . | . . . . . . . Propulsion . | . . . . . . . Treads . | . . . . . . . Leg . | . . . . . . . Wheel . | . . . . . . . Hover . | . . . . . . . Flight . | . . . . . . . Utility 3 | . . . 1 1 . 1 Device . | . . . . . . . Storage 1 | . . . . 1 . . Processor 2 | . . . 1 . . 1 Hackware . | . . . . . . . Protection . | . . . . . . . Artifact . | . . . . . . . Weapon 2 | . . . 1 . . 1 Energy Gun 1 | . . . 1 . . . Energy Cannon . | . . . . . . . Ballistic Gun . | . . . . . . . Ballistic Cannon . | . . . . . . . Launcher 1 | . . . . . . 1 Special Weapon . | . . . . . . . Impact Weapon . | . . . . . . . Slashing Weapon . | . . . . . . . Piercing Weapon . | . . . . . . . Special Melee Weapon . | . . . . . . . Unidentified Prototypes . | . . . . . . . Parts Lost 2 | . . . 1 . . 1 Power . | . . . . . . . Propulsion 1 | . . . . . . 1 Utility . | . . . . . . . Weapon 1 | . . . 1 . . . Highest Loss Streak 1 | . . . 1 . . 1 Average Slot Usage (%) 78 | . 85 85 68 77 77 78 Engine 11 | . 14 14 11 11 11 11 Leg 23 | . 28 28 22 22 22 22 Storage 11 | . 14 14 11 11 11 11 Processor 8 | . . . 3 11 11 12 Energy Gun 11 | . 14 14 9 11 11 10 Ballistic Gun 11 | . 14 14 11 11 11 11 Naked Turns . | . . . . . . . Heaviest Build 25 | 13 13 13 13 25 25 25 Greatest Support 20 | 20 20 20 20 20 20 20 Greatest Overweight (x) 2 | . . . . 1 1 2 Average Overweight (x) . | . . . . . 1 1 Largest Inventory Capacity 10 | . 6 6 6 10 10 10 Average Capacity 8 | . 6 6 6 7 10 10 Most Carried 10 | . 6 6 6 8 8 10 Average Carried 7 | . 5 6 5 6 8 9 Final Capacity 10 | 6 6 6 6 10 10 10 Final Carried 9 | 6 6 6 6 8 8 9 Class Distribution -------------------- 100% | Mutant Dominant Class ---------------- Mutant | -10/Materials Mutant | -10/Mines Mutant | -9/Materials Mutant | -9/Mines Mutant | -9/Exiles Mutant | -8/Mines Resources | -11 -10 -10 -9 -9 -9 -8 ----------- Run | Scr Mat Min Mat Min Exi Min Matter Collected 345 | 200 . . 38 28 . 79 Remotely . | . . . . . . . Salvage Created 281 | . . . 94 41 . 146 Parts 31 | . . . 11 6 . 14 Haulers Intercepted . | . . . . . . . Recyclers Shooed . | . . . . . . . Parts Field Recycled . | . . . . . . . Retrieved Matter . | . . . . . . . Parts Self-Destructed . | . . . . . . . Prevented . | . . . . . . . Kills | -11 -10 -10 -9 -9 -9 -8 ------- Run | Scr Mat Min Mat Min Exi Min Combat Hostiles Destroyed 13 | . . . 2 3 . 8 Guns 11 | . . . 2 3 . 6 AOE 2 | . . . . . . 2 Classes Destroyed 3 | . . . 2 1 . . Watcher 1 | . . . 1 . . . Swarmer 9 | . . . . 3 . 6 Grunt 4 | . . . 2 . . 2 Best Kill Streak 3 | . . . 3 3 . 3 Combat Bots Only 3 | . . . 2 3 . 3 Max Kills in Single Turn 2 | . . . 1 1 . 2 Gunslinging 1 | . . . . . . 1 Exploded 1 | . . . . . . 1 Melee . | . . . . . . . Uniques/NPCs Destroyed . | . . . . . . . Combat | -11 -10 -10 -9 -9 -9 -8 -------- Run | Scr Mat Min Mat Min Exi Min Damage Taken 421 | . 10 . 134 55 . 222 Core 86 | . . . 42 13 . 31 Absorbed by Shields . | . . . . . . . Core Remaining (%) 100 | 100 . 100 . . . . Volleys Fired 30 | . 2 . 9 6 . 13 Largest 2 | . 2 . 2 2 . 2 Hottest 70 | . 70 . 70 70 . 70 Shots Fired 58 | . 4 . 18 12 . 24 Gun 55 | . 4 . 18 12 . 21 Cannon . | . . . . . . . Launcher 3 | . . . . . . 3 Special . | . . . . . . . Kinetic 28 | . 2 . 9 6 . 11 Thermal 27 | . 2 . 9 6 . 10 Explosive 3 | . . . . . . 3 Electromagnetic . | . . . . . . . Robot Hit Streak 15 | . 2 . 15 8 . 12 Robot Miss Streak 2 | . . . 2 1 . 2 Penetration Max . | . . . . . . . Secondary Targets 4 | . . . 2 . . 2 Max Gunslinging Chain 1 | . . . 1 . . 1 Shots Hit Robots 45 | . 2 . 16 8 . 19 Core Hits 18 | . . . 5 3 . 10 Critical Hits . | . . . . . . . Critical Kills . | . . . . . . . Critical Parts Destroyed . | . . . . . . . Melee Attacks . | . . . . . . . Impact . | . . . . . . . Slashing . | . . . . . . . Piercing . | . . . . . . . Sneak Attacks . | . . . . . . . Combat Hostiles . | . . . . . . . Follow-up Attacks . | . . . . . . . Damage Inflicted 898 | . 45 . 188 84 . 581 Guns 520 | . 45 . 188 84 . 203 Cannons . | . . . . . . . Explosions 378 | . . . . . . 378 Melee . | . . . . . . . Ramming . | . . . . . . . Kinetic 232 | . 20 . 88 23 . 101 Thermal 288 | . 25 . 100 61 . 102 Explosive 378 | . . . . . . 378 Electromagnetic . | . . . . . . . Impact . | . . . . . . . Slashing . | . . . . . . . Piercing . | . . . . . . . Highest Corruption . | . . . . . . . Average Corruption . | . . . . . . . Corruption Purged . | . . . . . . . Overload Shots . | . . . . . . . Overflow Damage . | . . . . . . . Projectiles . | . . . . . . . Explosions . | . . . . . . . Melee . | . . . . . . . Knockbacks . | . . . . . . . Impact . | . . . . . . . Kinetic . | . . . . . . . Secondary . | . . . . . . . Self-Inflicted Damage . | . . . . . . . Shots . | . . . . . . . Rammed . | . . . . . . . Targets Rammed . | . . . . . . . Kicked . | . . . . . . . Crushed . | . . . . . . . Highest Temperature 84 | . 18 . 84 . . 23 Average Temperature 32 | . 10 . 46 . . 16 Received Heat Transfer 177 | . . . 96 . . 81 Siege Activations . | . . . . . . . Robots Corrupted . | . . . . . . . Combat Hostiles . | . . . . . . . Parts Fried . | . . . . . . . Impact Corruptions . | . . . . . . . Robots Melted . | . . . . . . . Combat Hostiles . | . . . . . . . Parts Melted 3 | . . . . 1 . 2 Heat Transferred 851 | . 74 . 296 185 . 296 Parts Sabotaged . | . . . . . . . Parts Stolen . | . . . . . . . Parts Stripped . | . . . . . . . Power Chain Reactions . | . . . . . . . Missiles Intercepted . | . . . . . . . Alert | -11 -10 -10 -9 -9 -9 -8 ------- Run | Scr Mat Min Mat Min Exi Min Peak Influence 153 | . 22 7 60 89 . 153 Initial 19 | . . 7 1 19 . . Average 41 | . 9 7 32 63 . 58 Maximum Alert Level . | . . . . . . . Low Security (%) 100 | . 100 100 100 100 . 100 Level 1 . | . . . . . . . Level 2 . | . . . . . . . Level 3 . | . . . . . . . Level 4 . | . . . . . . . Level 5 . | . . . . . . . High Security . | . . . . . . . Max Security . | . . . . . . . Squads Dispatched . | . . . . . . . Investigation . | . . . . . . . Extermination . | . . . . . . . Reinforcement . | . . . . . . . Assault . | . . . . . . . Garrison . | . . . . . . . Intercept . | . . . . . . . Construction Impeded . | . . . . . . . Haulers Reinforced . | . . . . . . . Stealth | -11 -10 -10 -9 -9 -9 -8 --------- Run | Scr Mat Min Mat Min Exi Min Distress Signals . | . . . . . . . Communications Jammed . | . . . . . . . Distress Signals . | . . . . . . . Times Spotted 24 | . 1 . 6 3 . 14 Peak Tracking Total 6 | . 1 . 3 3 . 6 Tactical Retreats . | . . . . . . . Traps | -11 -10 -10 -9 -9 -9 -8 ------- Run | Scr Mat Min Mat Min Exi Min Traps Triggered 1 | . 1 . . . . . Indirectly . | . . . . . . . Trap Hack Attempts . | . . . . . . . Triggered . | . . . . . . . Disarmed . | . . . . . . . Reprogrammed . | . . . . . . . Reused . | . . . . . . . Traps Extracted . | . . . . . . . Installed . | . . . . . . . Triggered . | . . . . . . . Machines | -11 -10 -10 -9 -9 -9 -8 ---------- Run | Scr Mat Min Mat Min Exi Min Machines Disabled 1 | . . . . . . 1 Max in Single Turn 1 | . . . . . . 1 Machines Sabotaged . | . . . . . . . Garrisons Compromised . | . . . . . . . Overloaded Fab Kills . | . . . . . . . Fab Network Shutdowns . | . . . . . . . Hacking | -11 -10 -10 -9 -9 -9 -8 --------- Run | Scr Mat Min Mat Min Exi Min Machines Accessed 3 | . 1 . 2 . . . Terminals 3 | . 1 . 2 . . . Fabricators . | . . . . . . . Repair Stations . | . . . . . . . Recycling Units . | . . . . . . . Scanalyzers . | . . . . . . . Garrison Access . | . . . . . . . Total Hacks 6 | . 3 . 3 . . . Successful 3 | . 1 . 2 . . . Failed 3 | . 2 . 1 . . . Catastrophic . | . . . . . . . Database Lockouts . | . . . . . . . Manual 5 | . 3 . 2 . . . Terminals 6 | . 3 . 3 . . . Fabricators . | . . . . . . . Repair Stations . | . . . . . . . Recycling Units . | . . . . . . . Scanalyzers . | . . . . . . . Garrison Access . | . . . . . . . Terminal Hacks 3 | . 1 . 2 . . . Branch Access Points 2 | . 1 . 1 . . . Zone Layout 1 | . . . 1 . . . Fabricator Hacks . | . . . . . . . Repair Station Hacks . | . . . . . . . Recycling Unit Hacks . | . . . . . . . Scanalyzer . | . . . . . . . Garrison Access Hacks . | . . . . . . . Unauthorized Hacks . | . . . . . . . Terminals . | . . . . . . . Fabricators . | . . . . . . . Repair Stations . | . . . . . . . Recycling Units . | . . . . . . . Scanalyzers . | . . . . . . . Garrison Access . | . . . . . . . Data Cores Recovered . | . . . . . . . Used . | . . . . . . . Hacking Detections . | . . . . . . . Full Trace Events . | . . . . . . . Feedback Events . | . . . . . . . Feedback Blocked . | . . . . . . . Robot Schematics Acquired . | . . . . . . . Robots Built . | . . . . . . . Matter . | . . . . . . . Time . | . . . . . . . Total Robot Build Rating . | . . . . . . . Part Schematics Acquired . | . . . . . . . Parts Built . | . . . . . . . Matter . | . . . . . . . Time . | . . . . . . . Total Part Build Rating . | . . . . . . . Parts Repaired . | . . . . . . . Time . | . . . . . . . Parts Recycled . | . . . . . . . Recycled Matter . | . . . . . . . Retrieved Matter . | . . . . . . . Retrieved Components . | . . . . . . . Parts Scanalyzed . | . . . . . . . Part Schematics Acquired . | . . . . . . . Parts Damaged . | . . . . . . . Bothacking | -11 -10 -10 -9 -9 -9 -8 ------------ Run | Scr Mat Min Mat Min Exi Min Used RIF Installer . | . . . . . . . Robots Hacked . | . . . . . . . Non-combat . | . . . . . . . Combat . | . . . . . . . Robot Hacks Applied . | . . . . . . . Relay Couplers Released . | . . . . . . . Robots Rewired . | . . . . . . . Allies Hacked . | . . . . . . . Hacks Repelled . | . . . . . . . Allies | -11 -10 -10 -9 -9 -9 -8 -------- Run | Scr Mat Min Mat Min Exi Min Total Allies . | . . . . . . . Largest Group . | . . . . . . . Highest-Rated Group . | . . . . . . . Highest-Rated Ally . | . . . . . . . Total Orders . | . . . . . . . Ally Attacks . | . . . . . . . Total Damage . | . . . . . . . Kills . | . . . . . . . Allies Corrupted . | . . . . . . . Allies Melted . | . . . . . . . Intel | -11 -10 -10 -9 -9 -9 -8 ------- Run | Scr Mat Min Mat Min Exi Min Robot Analysis Total . | . . . . . . . Derelict Logs Recovered . | . . . . . . . Drone Launches . | . . . . . . . Drone Recoveries . | . . . . . . . Exploration | -11 -10 -10 -9 -9 -9 -8 ------------- Run | Scr Mat Min Mat Min Exi Min Turns Passed 1214 | . 195 112 89 83 177 558 Spaces Moved 794 | 1 153 94 48 45 119 334 Core . | . . . . . . . Treads . | . . . . . . . Legs 794 | 1 153 94 48 45 119 334 Wheels . | . . . . . . . Hover . | . . . . . . . Flight . | . . . . . . . Fastest Speed 120 | 120 120 120 120 120 150 150 Average Speed 137 | 120 120 120 120 133 150 150 Slowest Speed 180 | 120 120 120 120 150 150 180 Overloaded Moves . | . . . . . . . Propulsion Burnouts . | . . . . . . . Robots Hopped . | . . . . . . . Cave-ins Triggered . | . . . . . . . Exploration Rate (%) 26 | 2 31 33 8 13 25 76 Regions Visited 6 Branch Regions 4 Pre-discovered Areas . | . . . . . . . Known Exits Taken 2 | . 1 . 1 . . . Unknown Exits Taken 4 | 1 . 1 . 1 1 . Scrap Searched 1 | . . . . . . 1 Spaces Dug . | . . . . . . . Terrain Destroyed 32 | . . . . . . 32 Melee . | . . . . . . . Projectile . | . . . . . . . AOE 32 | . . . . . . 32 Terrain Rammed . | . . . . . . . Walls Destroyed . | . . . . . . . Machines Disabled . | . . . . . . . Actions | -11 -10 -10 -9 -9 -9 -8 --------- Run | Scr Mat Min Mat Min Exi Min Total 859 | . 162 93 62 57 118 367 Wait 10 | . . . . . . 10 Move 788 | . 152 93 47 44 118 334 Hop . | . . . . . . . Pick Up 16 | . 4 . 3 4 . 5 Fast Attach . | . . . . . . . Attach 3 | . . . 2 . . 1 Detach . | . . . . . . . Swap 2 | . . . . 1 . 1 Drop 10 | . 4 . 1 2 . 3 Fire 30 | . 2 . 9 6 . 13 Melee . | . . . . . . . Ram . | . . . . . . . Kick . | . . . . . . . Crush . | . . . . . . . Escape Stasis . | . . . . . . . Rewire . | . . . . . . . Trap . | . . . . . . . Miscellaneous . | . . . . . . . Route ------- -11/Scrapyard -10/Materials (discovered 2 exits: *Mat / *Min) -10/Mines -9/Materials (discovered 4 exits: *Min x2 / Sto x2) -9/Mines -9/Exiles -8/Mines (discovered 1 exit: [*Mat]) History --------- Turn | Location | Event 1 | -11/Scrapyard | Discovered new exit (range 0) 1 | -11/Scrapyard | Entered Materials 69 | -10/Materials | Identified exit to Mines 138 | -10/Materials | Discovered new exit (range 16) 196 | -10/Materials | Entered Mines 270 | -10/Mines | Met a Derelict bent on vengeance 292 | -10/Mines | Discovered new exit (range 12) 308 | -10/Mines | Entered Materials 308 | -9/Materials | Evolved 2 slots: Utility x2 313 | -9/Materials | Build established: Mutant 317 | -9/Materials | Identified exit to Mines 317 | -9/Materials | Identified exit to Storage 397 | -9/Materials | Entered Mines 474 | -9/Mines | Deemed a non-threat by the Exiles lab entrance 474 | -9/Mines | Discovered new exit (range 5) 480 | -9/Mines | Entered Exiles 506 | -9/Exiles | Discovered new exit (range 15) 524 | -9/Exiles | Met 8R-AWN 548 | -9/Exiles | Met EX-HEX 657 | -9/Exiles | Entered Mines 1201 | -8/Mines | Discovered new exit (range 13) 1215 | -8/Mines | Self-destructed Last Messages --------------- 00932_ Found 27 Matter. 00933_ Acquired 27 matter. 00935_ Dropped Mni. Grenade Launcher. 00936_ Acquired EM Pulse Cannon. 00949_ Dropped Rocket Launcher. 00951_ Acquired Mni. Grenade Launcher. 00953_ Dropped Adv. Weight Redist. System. 00954_ Acquired Hrd. Light Armor Plating. 01146_ Destroyed Flight Unit. 01149_ Flight Unit melted. 01149_ S-10 Pest destroyed. 01149_ Switching to secondary target: S-10 Pest. 01152_ S-10 Pest destroyed. 01152_ Switching to secondary target: S-10 Pest. 01152_ S-10 Pest destroyed. 01158_ Acquired 14 matter. 01201_ EXIT=FOUND 01206_ Laser Drill disabled. 01208_ G-47 Trooper destroyed. 01213_ Aluminum Leg destroyed. Map ----- +----------------------------------------------------+ | | | | | | | | | | | | | | | | | | | | | | | | | | | | | | | | | | | | | | | | | ????????????????????????????????????????????????? | | ????????????????????????????????????????????????? | | ?????????????###????????????????????##??????????? | | ?????????? ?? ?????????????? #??????????? | | ??????????? ??######## ????????? | | ????????????? """ ## @ %*< ""??????????? | | ????????????? """ g gl g%! ""?????????? | | ????????????? """ k## ###### ""?????????? | | ??????????? ???# #??????? ?????????? | | ??????????#####??????# #?????????? ##?????????? | | ?????????????????????# #?????????????#??????????? | | ?????????????????????# #????????????????????????? | | ?????????????????????# #????????????????????????? | | ????????????########## #????????????????????????? | | ????????????# #????????????????????????? | | ????????????# ##########????????????????????????? | | ????????????# #?????????????????????????????????? | | ????????????# #?????????????????????????????????? | | ????????????# #?????????????????????????????????? | | ????????????# #?????????????????????????????????? | | ??########### ###???????????????????????????????? | | ?# = #???????????????????????????????? | | ?# [ * #???????????????????????????????? | | ?# *=% ######??????????????????????????? | | ?# """ """=""" #??????????????????????????? | | ?#? """ """ """ #### #??????????????????????????? | | ????""" """ """%#??# #??????????????????????????? | | ????? #??# #??????????????????????????? | | ?????"" """ """ #??# #############??????????????? | | ??????" """ """ #??# #??????????????? | +----------------------------------------------------+ Best States ------------- Heat Dissipation 28 Energy Generation 10 Energy Capacity 250 Matter Stores 300 Matter Capacity 300 Sight Range 16 Terrain Scan Density 10 Resistance: KI 20 Resistance: TH 20 Resistance: EX 20 Resistance: EM 20 Resistance: I 20 Resistance: S 20 Resistance: P 20 Evasion (%) 40 Targeting Accuracy 5 Offensive Hacking 10 Item Schematics ----------------- None Robot Schematics ------------------ None Fabricated ------------ Nothing Alien Tech Used ----------------- None Achievements -------------- None Challenges ------------ None Game ------ Seed ParticleParticleGravjet Manual? 0 Play Time 00:25:34 Cumulative 80.6 hours Start 2022.02.06 @ 02:12:52 End 2022.02.07 @ 22:18:52 Sessions 2 Manual Loads 0 Difficulty Adventurer Special Mode None Game No. 91 Rogue 83 Adventurer 8 Explorer 0 Win Type - Total 2 Types 1/1/0/0/0/0/0/0/0 Lore% 49 Gallery% 60 Achievement% 48 Wizard Run 0 Options --------- ASCII 0 Keyboard 0 Movement Mouse Keybinds 0 Fullscreen 2 Font 20/Terminus Map View 66x50 Tactical HUD 1 Map Filters NONE Filters NONE Steam 1 RUN: 3883215c-bbf5-4ef9-b21c-7696bd74db37